fUST/lending_fUST_20260512
["ID","MTS","AMOUNT","RATE_DAILY","PERIOD"]
[422052653,1778529073000,-500.0,0.00012328,2]
[422052665,1778529073000,-500.0,0.00012328,2]
[422052693,1778529073000,-500.0,0.00012328,2]
[422052694,1778529073000,-500.0,0.00012328,2]
[422052696,1778529073000,-500.0,0.00012328,2]
[422052699,1778529073000,-500.0,0.00012328,2]
[422052700,1778529073000,-500.0,0.00012328,2]
[422052695,1778529073000,-500.0,0.00012328,2]
[422052698,1778529073000,-890.68,0.00012328,2]
[422052703,1778529073000,-500.0,0.00012328,2]
[422052704,1778529073000,-1617.65,0.00012328,2]
[422052706,1778529073000,-500.0,0.00012328,2]
[422052707,1778529073000,-500.0,0.00012328,2]
[422052697,1778529073000,-500.0,0.00012328,2]
[422052708,1778529073000,-500.0,0.00012328,2]
[422052712,1778529073000,-1285.52,0.00012328,2]
[422052713,1778529073000,-500.0,0.00012328,2]
[422052710,1778529073000,-500.0,0.00012328,2]
[422052714,1778529073000,-500.0,0.00012328,2]
[422052717,1778529073000,-500.0,0.00012328,2]
[422052716,1778529073000,-668.95,0.00012328,2]
[422052718,1778529073000,-500.0,0.00012328,2]
[422052719,1778529073000,-825.62,0.00012328,2]
[422052720,1778529073000,-500.0,0.00012328,2]
[422052715,1778529073000,-500.0,0.00012328,2]
[422052662,1778529073000,-500.0,0.00012328,2]
[422052711,1778529073000,-500.0,0.00012328,2]
[422052691,1778529073000,-500.0,0.00012328,2]
[422052709,1778529073000,-3759.34,0.00012328,2]
[422052690,1778529073000,-500.0,0.00012328,2]
[422052664,1778529073000,-500.0,0.00012328,2]
[422052692,1778529073000,-500.0,0.00012328,2]
[422052666,1778529073000,-500.0,0.00012328,2]
[422052672,1778529073000,-500.0,0.00012328,2]
[422052663,1778529073000,-338.16130836,0.00012328,2]
[422052667,1778529073000,-500.0,0.00012328,2]
[422052670,1778529073000,-500.0,0.00012328,2]
[422052673,1778529073000,-500.0,0.00012328,2]
[422052671,1778529073000,-500.0,0.00012328,2]
[422052668,1778529073000,-500.0,0.00012328,2]
[422052685,1778529073000,-500.0,0.00012328,2]
[422052687,1778529073000,-500.0,0.00012328,2]
[422052669,1778529073000,-541.03,0.00012328,2]
[422052678,1778529073000,-500.0,0.00012328,2]
[422052686,1778529073000,-4381.78,0.00012328,2]
[422052674,1778529073000,-5259.13,0.00012328,2]
[422052684,1778529073000,-500.0,0.00012328,2]
[422052679,1778529073000,-167.74145559,0.00012328,2]
[422052677,1778529073000,-500.0,0.00012328,2]
[422052681,1778529073000,-500.0,0.00012328,2]
[422052688,1778529073000,-500.0,0.00012328,2]
[422052683,1778529073000,-500.0,0.00012328,2]
[422052680,1778529073000,-500.0,0.00012328,2]
[422052689,1778529073000,-500.0,0.00012328,2]
[422052676,1778529073000,-500.0,0.00012328,2]
[422052768,1778529074000,-503.16272946,0.00012328,2]
[422052766,1778529074000,-500.0,0.00012328,2]
[422052772,1778529074000,-686.76,0.00012328,2]
[422052778,1778529074000,-500.0,0.00012328,2]
[422052771,1778529074000,-500.0,0.00012328,2]
[422052760,1778529074000,-500.0,0.00012328,2]
[422052757,1778529074000,-500.0,0.00012328,2]
[422052759,1778529074000,-500.0,0.00012328,2]
[422052761,1778529074000,-500.0,0.00012328,2]
[422052756,1778529074000,-500.0,0.00012328,2]
[422052758,1778529074000,-500.0,0.00012328,2]
[422052773,1778529074000,-693.26,0.00012328,2]
[422052763,1778529074000,-22188.23,0.00012328,2]
[422052781,1778529074000,-500.0,0.00012328,2]
[422052795,1778529074000,-500.0,0.00012328,2]
[422052779,1778529074000,-578.44,0.00012328,2]
[422052780,1778529074000,-500.0,0.00012328,2]
[422052769,1778529074000,-3114.11,0.00012328,2]
[422052776,1778529074000,-980.31,0.00012328,2]
[422052782,1778529074000,-500.0,0.00012328,2]
[422052775,1778529074000,-500.0,0.00012328,2]
[422052777,1778529074000,-1757.18,0.00012328,2]
[422052784,1778529074000,-500.0,0.00012328,2]
[422052783,1778529074000,-364.46340856,0.00012328,2]
[422052785,1778529074000,-500.0,0.00012328,2]
[422052794,1778529074000,-500.0,0.00012328,2]
[422052796,1778529074000,-500.0,0.00012328,2]
[422052786,1778529074000,-503.82524111,0.00012328,2]
[422052767,1778529074000,-500.0,0.00012328,2]
[422052774,1778529074000,-4119.84,0.00012328,2]
[422052765,1778529074000,-500.0,0.00012328,2]
[422052738,1778529074000,-500.0,0.00012328,2]
[422052764,1778529074000,-500.0,0.00012328,2]
[422052725,1778529074000,-500.0,0.00012328,2]
[422052721,1778529074000,-4892.14,0.00012328,2]
[422052724,1778529074000,-500.0,0.00012328,2]
[422052722,1778529074000,-500.0,0.00012328,2]
[422052727,1778529074000,-5133.09,0.00012328,2]
[422052739,1778529074000,-500.0,0.00012328,2]
[422052737,1778529074000,-3729.23,0.00012328,2]
[422052733,1778529074000,-500.0,0.00012328,2]
[422052726,1778529074000,-500.0,0.00012328,2]
[422052728,1778529074000,-500.0,0.00012328,2]
[422052734,1778529074000,-500.0,0.00012328,2]
[422052731,1778529074000,-500.0,0.00012328,2]
[422052735,1778529074000,-1835.69,0.00012328,2]
[422052729,1778529074000,-961.09,0.00012328,2]
[422052732,1778529074000,-500.0,0.00012328,2]
[422052740,1778529074000,-500.0,0.00012328,2]
[422052742,1778529074000,-500.0,0.00012328,2]
[422052743,1778529074000,-2540.86,0.00012328,2]
[422052741,1778529074000,-1066.82,0.00012328,2]
[422052744,1778529074000,-500.0,0.00012328,2]
[422052748,1778529074000,-500.0,0.00012328,2]
[422052746,1778529074000,-500.0,0.00012328,2]
[422052745,1778529074000,-500.0,0.00012328,2]
[422052750,1778529074000,-500.0,0.00012328,2]
[422052747,1778529074000,-500.0,0.00012328,2]
[422052751,1778529074000,-500.0,0.00012328,2]
[422052752,1778529074000,-500.0,0.00012328,2]
[422052749,1778529074000,-500.0,0.00012328,2]
[422052754,1778529074000,-500.0,0.00012328,2]
[422052753,1778529074000,-500.0,0.00012328,2]
[422052789,1778529074000,-500.0,0.00012328,2]
[422052790,1778529074000,-500.0,0.00012328,2]
[422052793,1778529074000,-500.0,0.00012328,2]
[422052834,1778529074000,-6658.78,0.00012329,2]
[422052829,1778529074000,-500.0,0.00012328,2]
[422052831,1778529074000,-500.0,0.00012328,2]
[422052836,1778529074000,-4624.15,0.00012329,2]
[422052833,1778529074000,-7990.54,0.00012329,2]
[422052835,1778529074000,-5548.98,0.00012329,2]
[422052837,1778529074000,-3853.46,0.00012329,2]
[422052830,1778529074000,-1740.68,0.00012328,2]
[422052827,1778529074000,-500.0,0.00012328,2]
[422052832,1778529074000,-461.15,0.00012329,2]
[422052828,1778529074000,-500.0,0.00012328,2]
[422052838,1778529074000,-3211.22,0.00012329,2]
[422052849,1778529074000,-432.19,0.00012329,2]
[422052839,1778529074000,-2676.02,0.00012329,2]
[422052840,1778529074000,-2230.01,0.00012329,2]
[422052841,1778529074000,-1858.34,0.00012329,2]
[422052842,1778529074000,-1548.62,0.00012329,2]
[422052845,1778529074000,-896.19,0.00012329,2]
[422052843,1778529074000,-1290.52,0.00012329,2]
[422052848,1778529074000,-518.63,0.00012329,2]
[422052846,1778529074000,-746.83,0.00012329,2]
[422052844,1778529074000,-1075.43,0.00012329,2]
[422052847,1778529074000,-622.36,0.00012329,2]
[422052853,1778529074000,-208.43,0.00012329,2]
[422052855,1778529074000,-868.46,0.00012329,2]
[422052854,1778529074000,-173.69,0.00012329,2]
[422052852,1778529074000,-250.11,0.00012329,2]
[422052850,1778529074000,-360.16,0.00012329,2]
[422052851,1778529074000,-300.13,0.00012329,2]
[422052826,1778529074000,-500.0,0.00012328,2]
[422052825,1778529074000,-500.0,0.00012328,2]
[422052787,1778529074000,-500.0,0.00012328,2]
[422052820,1778529074000,-500.0,0.00012328,2]
[422052792,1778529074000,-500.0,0.00012328,2]
[422052788,1778529074000,-500.0,0.00012328,2]
[422052791,1778529074000,-825.34,0.00012328,2]
[422052800,1778529074000,-500.0,0.00012328,2]
[422052798,1778529074000,-1227.14,0.00012328,2]
[422052803,1778529074000,-500.0,0.00012328,2]
[422052808,1778529074000,-500.0,0.00012328,2]
[422052797,1778529074000,-500.0,0.00012328,2]
[422052824,1778529074000,-500.0,0.00012328,2]
[422052805,1778529074000,-683.65,0.00012328,2]
[422052804,1778529074000,-500.0,0.00012328,2]
[422052809,1778529074000,-2263.78,0.00012328,2]
[422052807,1778529074000,-1039.82,0.00012328,2]
[422052806,1778529074000,-512.54,0.00012328,2]
[422052799,1778529074000,-500.0,0.00012328,2]
[422052801,1778529074000,-500.0,0.00012328,2]
[422052802,1778529074000,-990.94,0.00012328,2]
[422052819,1778529074000,-666.66,0.00012328,2]
[422052818,1778529074000,-500.0,0.00012328,2]
[422052813,1778529074000,-500.0,0.00012328,2]
[422052815,1778529074000,-500.0,0.00012328,2]
[422052816,1778529074000,-234.67416145,0.00012328,2]
[422052817,1778529074000,-501.82103239,0.00012328,2]
[422052810,1778529074000,-502.5908203,0.00012328,2]
[422052812,1778529074000,-546.18,0.00012328,2]
[422052814,1778529074000,-500.0,0.00012328,2]
[422052822,1778529074000,-500.0,0.00012328,2]
[422052821,1778529074000,-1473.82,0.00012328,2]
[422052811,1778529074000,-2523.1,0.00012328,2]
[422052823,1778529074000,-500.0,0.00012328,2]
[422052901,1778529075000,-188.90627,0.00012528,2]
[422052898,1778529075000,-3170.04061508,0.00012512,2]
[422052897,1778529075000,-3170.04061508,0.000125,2]
[422052895,1778529075000,-3170.04061508,0.000125,2]
[422052894,1778529075000,-3170.04061508,0.000125,2]
[422052891,1778529075000,-3170.04061508,0.000125,2]
[422052893,1778529075000,-3170.04061508,0.000125,2]
[422052890,1778529075000,-3170.04061508,0.000125,2]
[422052892,1778529075000,-3170.04061508,0.000125,2]
[422052900,1778529075000,-1568.72688744,0.0001252,7]
[422052899,1778529075000,-3170.04061508,0.00012518,2]
[422052896,1778529075000,-3170.04061508,0.000125,2]
[422052905,1778529075000,-225.04190711,0.00012549,7]
[422052916,1778529075000,-15607.97579,0.00012602,2]
[422052902,1778529075000,-180.412543,0.00012528,2]
[422052903,1778529075000,-643.81330363,0.00012538,7]
[422052913,1778529075000,-38000.0,0.00012602,2]
[422052908,1778529075000,-153.91,0.000126,2]
[422052907,1778529075000,-160.0,0.00012598,8]
[422052906,1778529075000,-3170.04061508,0.00012555,2]
[422052911,1778529075000,-634.4292,0.00012602,2]
[422052909,1778529075000,-859.45,0.000126,2]
[422052912,1778529075000,-1034.952142,0.00012602,2]
[422052910,1778529075000,-818.033,0.00012602,2]
[422052915,1778529075000,-178.421918,0.00012602,2]
[422052918,1778529075000,-13621.88844776,0.00012602,2]
[422052925,1778529075000,-500.0,0.00012602,2]
[422052888,1778529075000,-3170.04061508,0.000125,2]
[422052904,1778529075000,-2624.35715644,0.00012546,7]
[422052889,1778529075000,-3170.04061508,0.000125,2]
[422052870,1778529075000,-294.76158221,0.00012425,7]
[422052884,1778529075000,-17994.78778602,0.000125,2]
[422052914,1778529075000,-16409.30852925,0.00012602,2]
[422052858,1778529075000,-643.81330363,0.00012359,7]
[422052861,1778529075000,-153.91,0.000124,2]
[422052860,1778529075000,-225.04190711,0.00012366,7]
[422052862,1778529075000,-3348.717794,0.00012404,2]
[422052857,1778529075000,-1568.72688744,0.00012347,7]
[422052859,1778529075000,-2624.35715644,0.00012364,7]
[422052856,1778529075000,-160.0,0.00012335,7]
[422052864,1778529075000,-2755.358366,0.00012404,2]
[422052863,1778529075000,-2317.601019,0.00012404,2]
[422052874,1778529075000,-226.62403741,0.00012437,7]
[422052868,1778529075000,-5000.0,0.00012404,2]
[422052865,1778529075000,-5000.0,0.00012404,2]
[422052867,1778529075000,-5000.0,0.00012404,2]
[422052871,1778529075000,-2624.35715644,0.00012425,7]
[422052869,1778529075000,-5000.0,0.00012404,2]
[422052872,1778529075000,-1568.72688744,0.00012433,7]
[422052873,1778529075000,-302.57124891,0.00012433,7]
[422052877,1778529075000,-4407.749586,0.00012466,2]
[422052875,1778529075000,-200.0,0.00012456,120]
[422052878,1778529075000,-4421.599107,0.00012466,2]
[422052879,1778529075000,-6772.908842,0.00012466,2]
[422052880,1778529075000,-6412.75627374,0.00012476,10]
[422052881,1778529075000,-2624.35715644,0.00012485,7]
[422052882,1778529075000,-11793.66926564,0.000125,2]
[422052883,1778529075000,-3170.04061508,0.000125,2]
[422052876,1778529075000,-635.10630186,0.00012456,7]
[422052886,1778529075000,-3170.04061508,0.000125,2]
[422052887,1778529075000,-3170.04061508,0.000125,2]
[422052885,1778529075000,-3170.04061508,0.000125,2]
[422052924,1778529075000,-500.0,0.00012602,2]
[422052866,1778529075000,-5000.0,0.00012404,2]
[422052922,1778529075000,-500.0,0.00012602,2]
[422052958,1778529075000,-500.0,0.00012602,2]
[422052957,1778529075000,-500.0,0.00012602,2]
[422052956,1778529075000,-183.64,0.00012602,2]
[422052961,1778529075000,-500.0,0.00012602,2]
[422052962,1778529075000,-500.0,0.00012602,2]
[422052966,1778529075000,-500.0,0.00012602,2]
[422052954,1778529075000,-500.0,0.00012602,2]
[422052959,1778529075000,-500.0,0.00012602,2]
[422052964,1778529075000,-832.79,0.00012602,2]
[422052963,1778529075000,-500.0,0.00012602,2]
[422052960,1778529075000,-500.0,0.00012602,2]
[422052965,1778529075000,-500.0,0.00012602,2]
[422052968,1778529075000,-500.0,0.00012602,2]
[422052955,1778529075000,-500.0,0.00012602,2]
[422052978,1778529075000,-500.0,0.00012602,2]
[422052969,1778529075000,-500.43,0.00012602,2]
[422052970,1778529075000,-500.0,0.00012602,2]
[422052977,1778529075000,-552.93343335,0.00012602,2]
[422052971,1778529075000,-500.0,0.00012602,2]
[422052983,1778529075000,-500.0,0.00012602,2]
[422052973,1778529075000,-500.0,0.00012602,2]
[422052972,1778529075000,-500.0,0.00012602,2]
[422052975,1778529075000,-476.43382006,0.00012602,2]
[422052976,1778529075000,-500.0,0.00012602,2]
[422052979,1778529075000,-500.0,0.00012602,2]
[422052980,1778529075000,-500.0,0.00012602,2]
[422052982,1778529075000,-500.0,0.00012602,2]
[422052981,1778529075000,-500.0,0.00012602,2]
[422052967,1778529075000,-545.73,0.00012602,2]
[422052953,1778529075000,-770.69,0.00012602,2]
[422052974,1778529075000,-500.0,0.00012602,2]
[422052949,1778529075000,-500.0,0.00012602,2]
[422052945,1778529075000,-500.0,0.00012602,2]
[422052919,1778529075000,-500.0,0.00012602,2]
[422052923,1778529075000,-11222.541276,0.00012602,2]
[422052926,1778529075000,-500.0,0.00012602,2]
[422052921,1778529075000,-374.34966515,0.00012602,2]
[422052920,1778529075000,-500.0,0.00012602,2]
[422052928,1778529075000,-500.0,0.00012602,2]
[422052938,1778529075000,-500.0,0.00012602,2]
[422052939,1778529075000,-500.0,0.00012602,2]
[422052927,1778529075000,-500.0,0.00012602,2]
[422052930,1778529075000,-500.0,0.00012602,2]
[422052935,1778529075000,-500.0,0.00012602,2]
[422052931,1778529075000,-500.0,0.00012602,2]
[422052929,1778529075000,-500.0,0.00012602,2]
[422052937,1778529075000,-889.52,0.00012602,2]
[422052917,1778529075000,-538.137,0.00012602,2]
[422052936,1778529075000,-372.38,0.00012602,2]
[422052933,1778529075000,-500.0,0.00012602,2]
[422052950,1778529075000,-500.0,0.00012602,2]
[422052946,1778529075000,-154.85,0.00012602,2]
[422052951,1778529075000,-500.0,0.00012602,2]
[422052940,1778529075000,-500.0,0.00012602,2]
[422052944,1778529075000,-500.0,0.00012602,2]
[422052947,1778529075000,-500.0,0.00012602,2]
[422052942,1778529075000,-500.0,0.00012602,2]
[422052932,1778529075000,-653.03,0.00012602,2]
[422052943,1778529075000,-569.28,0.00012602,2]
[422052934,1778529075000,-500.0,0.00012602,2]
[422052948,1778529075000,-581.85,0.00012602,2]
[422052941,1778529075000,-645.19,0.00012602,2]
[422052952,1778529075000,-500.0,0.00012602,2]
[422053013,1778529076000,-500.0,0.00012602,2]
[422053009,1778529076000,-655.91,0.00012602,2]
[422053008,1778529076000,-500.0,0.00012602,2]
[422053024,1778529076000,-500.0,0.00012602,2]
[422053027,1778529076000,-500.0,0.00012602,2]
[422053026,1778529076000,-500.0,0.00012602,2]
[422053025,1778529076000,-506.09698412,0.00012602,2]
[422053023,1778529076000,-500.0,0.00012602,2]
[422053028,1778529076000,-500.0,0.00012602,2]
[422053017,1778529076000,-500.0,0.00012602,2]
[422053011,1778529076000,-200.0,0.00012602,2]
[422053029,1778529076000,-1857.46,0.00012602,2]
[422053021,1778529076000,-500.0,0.00012602,2]
[422053020,1778529076000,-500.0,0.00012602,2]
[422053019,1778529076000,-1133.37,0.00012602,2]
[422053022,1778529076000,-500.0,0.00012602,2]
[422053010,1778529076000,-500.0,0.00012602,2]
[422053030,1778529076000,-500.0,0.00012602,2]
[422053032,1778529076000,-599.56733107,0.00012602,2]
[422053031,1778529076000,-500.0,0.00012602,2]
[422053037,1778529076000,-500.0,0.00012602,2]
[422053040,1778529076000,-500.0,0.00012602,2]
[422053038,1778529076000,-500.0,0.00012602,2]
[422053036,1778529076000,-500.0,0.00012602,2]
[422053018,1778529076000,-500.0,0.00012602,2]
[422053014,1778529076000,-500.0,0.00012602,2]
[422053004,1778529076000,-500.0,0.00012602,2]
[422053016,1778529076000,-500.0,0.00012602,2]
[422053033,1778529076000,-500.0,0.00012602,2]
[422052984,1778529076000,-500.0,0.00012602,2]
[422052985,1778529076000,-500.0,0.00012602,2]
[422052987,1778529076000,-500.0,0.00012602,2]
[422052991,1778529076000,-585.8,0.00012602,2]
[422052986,1778529076000,-500.0,0.00012602,2]
[422052989,1778529076000,-500.0,0.00012602,2]
[422052990,1778529076000,-500.0,0.00012602,2]
[422052988,1778529076000,-730.82,0.00012602,2]
[422052996,1778529076000,-692.39,0.00012602,2]
[422052995,1778529076000,-500.0,0.00012602,2]
[422053012,1778529076000,-548.11024713,0.00012602,2]
[422052997,1778529076000,-500.0,0.00012602,2]
[422052999,1778529076000,-500.0,0.00012602,2]
[422053000,1778529076000,-500.0,0.00012602,2]
[422053001,1778529076000,-500.0,0.00012602,2]
[422052993,1778529076000,-500.0,0.00012602,2]
[422053003,1778529076000,-500.0,0.00012602,2]
[422052994,1778529076000,-500.0,0.00012602,2]
[422053002,1778529076000,-500.0,0.00012602,2]
[422053005,1778529076000,-953.9,0.00012602,2]
[422053007,1778529076000,-500.0,0.00012602,2]
[422053006,1778529076000,-500.0,0.00012602,2]
[422053015,1778529076000,-500.0,0.00012602,2]
[422052998,1778529076000,-500.0,0.00012602,2]
[422052992,1778529076000,-500.0,0.00012602,2]
[422053035,1778529076000,-500.0,0.00012602,2]
[422053039,1778529076000,-500.0,0.00012602,2]
[422053071,1778529076000,-500.0,0.00012602,2]
[422053069,1778529076000,-500.0,0.00012602,2]
[422053073,1778529076000,-500.0,0.00012602,2]
[422053075,1778529076000,-500.0,0.00012602,2]
[422053077,1778529076000,-500.0,0.00012602,2]
[422053078,1778529076000,-500.0,0.00012602,2]
[422053072,1778529076000,-665.68,0.00012602,2]
[422053074,1778529076000,-500.0,0.00012602,2]
[422053076,1778529076000,-526.55,0.00012602,2]
[422053080,1778529076000,-500.0,0.00012602,2]
[422053090,1778529076000,-500.0,0.00012602,2]
[422053070,1778529076000,-643.88,0.00012602,2]
[422053079,1778529076000,-500.0,0.00012602,2]
[422053083,1778529076000,-500.0,0.00012602,2]
[422053085,1778529076000,-500.0,0.00012602,2]
[422053087,1778529076000,-2094.39,0.00012602,2]
[422053086,1778529076000,-500.0,0.00012602,2]
[422053089,1778529076000,-941.43,0.00012602,2]
[422053084,1778529076000,-500.0,0.00012602,2]
[422053088,1778529076000,-500.0,0.00012602,2]
[422053093,1778529076000,-500.0,0.00012602,2]
[422053091,1778529076000,-500.0,0.00012602,2]
[422053092,1778529076000,-500.0,0.00012602,2]
[422053034,1778529076000,-500.0,0.00012602,2]
[422053082,1778529076000,-500.0,0.00012602,2]
[422053068,1778529076000,-500.0,0.00012602,2]
[422053081,1778529076000,-899.715813,0.00012602,2]
[422053067,1778529076000,-500.0,0.00012602,2]
[422053041,1778529076000,-500.0,0.00012602,2]
[422053066,1778529076000,-500.0,0.00012602,2]
[422053043,1778529076000,-500.0,0.00012602,2]
[422053053,1778529076000,-2116.23,0.00012602,2]
[422053045,1778529076000,-500.0,0.00012602,2]
[422053044,1778529076000,-500.0,0.00012602,2]
[422053054,1778529076000,-500.0,0.00012602,2]
[422053047,1778529076000,-544.4,0.00012602,2]
[422053046,1778529076000,-500.0,0.00012602,2]
[422053048,1778529076000,-500.0,0.00012602,2]
[422053052,1778529076000,-500.0,0.00012602,2]
[422053051,1778529076000,-500.0,0.00012602,2]
[422053042,1778529076000,-500.0,0.00012602,2]
[422053056,1778529076000,-500.0,0.00012602,2]
[422053049,1778529076000,-500.0,0.00012602,2]
[422053055,1778529076000,-500.0,0.00012602,2]
[422053060,1778529076000,-500.0,0.00012602,2]
[422053058,1778529076000,-500.0,0.00012602,2]
[422053059,1778529076000,-500.0,0.00012602,2]
[422053065,1778529076000,-500.0,0.00012602,2]
[422053057,1778529076000,-500.0,0.00012602,2]
[422053061,1778529076000,-718.0,0.00012602,2]
[422053064,1778529076000,-500.0,0.00012602,2]
[422053062,1778529076000,-505.08062153,0.00012602,2]
[422053063,1778529076000,-500.0,0.00012602,2]
[422053050,1778529076000,-500.0,0.00012602,2]
[422053136,1778529077000,-500.0,0.00012602,2]
[422053128,1778529077000,-474.53605112,0.00012602,2]
[422053129,1778529077000,-500.0,0.00012602,2]
[422053134,1778529077000,-500.0,0.00012602,2]
[422053130,1778529077000,-500.0,0.00012602,2]
[422053131,1778529077000,-500.0,0.00012602,2]
[422053138,1778529077000,-500.0,0.00012602,2]
[422053133,1778529077000,-500.0,0.00012602,2]
[422053135,1778529077000,-500.0,0.00012602,2]
[422053127,1778529077000,-500.0,0.00012602,2]
[422053139,1778529077000,-500.0,0.00012602,2]
[422053137,1778529077000,-500.0,0.00012602,2]
[422053132,1778529077000,-500.0,0.00012602,2]
[422053140,1778529077000,-500.0,0.00012602,2]
[422053150,1778529077000,-500.0,0.00012602,2]
[422053151,1778529077000,-550.55,0.00012602,2]
[422053148,1778529077000,-500.0,0.00012602,2]
[422053152,1778529077000,-500.0,0.00012602,2]
[422053145,1778529077000,-500.0,0.00012602,2]
[422053143,1778529077000,-505.54076744,0.00012602,2]
[422053144,1778529077000,-500.0,0.00012602,2]
[422053141,1778529077000,-500.0,0.00012602,2]
[422053147,1778529077000,-500.0,0.00012602,2]
[422053146,1778529077000,-471.52286495,0.00012602,2]
[422053149,1778529077000,-500.0,0.00012602,2]
[422053154,1778529077000,-500.0,0.00012602,2]
[422053157,1778529077000,-500.0,0.00012602,2]
[422053123,1778529077000,-500.0,0.00012602,2]
[422053142,1778529077000,-500.0,0.00012602,2]
[422053121,1778529077000,-1944.17,0.00012602,2]
[422053098,1778529077000,-500.0,0.00012602,2]
[422053125,1778529077000,-500.0,0.00012602,2]
[422053095,1778529077000,-500.0,0.00012602,2]
[422053099,1778529077000,-500.0,0.00012602,2]
[422053102,1778529077000,-500.0,0.00012602,2]
[422053094,1778529077000,-500.0,0.00012602,2]
[422053096,1778529077000,-500.0,0.00012602,2]
[422053097,1778529077000,-500.0,0.00012602,2]
[422053101,1778529077000,-500.0,0.00012602,2]
[422053100,1778529077000,-500.0,0.00012602,2]
[422053113,1778529077000,-500.0,0.00012602,2]
[422053103,1778529077000,-502.90163867,0.00012602,2]
[422053112,1778529077000,-223.84583629,0.00012602,2]
[422053114,1778529077000,-500.0,0.00012602,2]
[422053105,1778529077000,-500.0,0.00012602,2]
[422053116,1778529077000,-500.0,0.00012602,2]
[422053104,1778529077000,-500.0,0.00012602,2]
[422053107,1778529077000,-500.0,0.00012602,2]
[422053111,1778529077000,-500.0,0.00012602,2]
[422053108,1778529077000,-500.0,0.00012602,2]
[422053110,1778529077000,-500.0,0.00012602,2]
[422053109,1778529077000,-500.0,0.00012602,2]
[422053115,1778529077000,-500.0,0.00012602,2]
[422053118,1778529077000,-244.26377555,0.00012602,2]
[422053117,1778529077000,-500.0,0.00012602,2]
[422053120,1778529077000,-500.0,0.00012602,2]
[422053119,1778529077000,-500.0,0.00012602,2]
[422053124,1778529077000,-500.0,0.00012602,2]
[422053126,1778529077000,-500.0,0.00012602,2]
[422053122,1778529077000,-500.0,0.00012602,2]
[422053106,1778529077000,-500.0,0.00012602,2]
[422053165,1778529077000,-500.0,0.00012602,2]
[422053153,1778529077000,-500.0,0.00012602,2]
[422053156,1778529077000,-500.0,0.00012602,2]
[422053185,1778529077000,-500.0,0.00012602,2]
[422053192,1778529077000,-500.0,0.00012602,2]
[422053195,1778529077000,-4381.78,0.00012602,2]
[422053197,1778529077000,-500.0,0.00012602,2]
[422053196,1778529077000,-500.0,0.00012602,2]
[422053194,1778529077000,-500.0,0.00012602,2]
[422053203,1778529077000,-500.0,0.00012602,2]
[422053202,1778529077000,-500.0,0.00012602,2]
[422053201,1778529077000,-500.0,0.00012602,2]
[422053198,1778529077000,-500.0,0.00012602,2]
[422053206,1778529077000,-500.0,0.00012602,2]
[422053193,1778529077000,-500.0,0.00012602,2]
[422053200,1778529077000,-500.0,0.00012602,2]
[422053187,1778529077000,-500.0,0.00012602,2]